Workbook

Sheet 1月
A1: 城市居民最低生活保障工作情况统计表（一）
A2: 填报单位：鼓楼区民政局 (2026年1月）
A3: 区县 | C3: 非农 人口 总数 | D3: 保 障 对 象 情 况 | P3: 保障资金情况
D4: 户 数 | I4: 人 数 | O4: 保障对象占非农总人口比例 | P4: 本月发放金额 | Q4: 上月发放金额 | R4: 本月新增金额 | S4: 本月减少金额 | T4: 本月调增金额 | U4: 本月调减金额 | V4: 本月人均补差金额 | W4: 当年累计发放低保金额总额
D5: 本月数 | E5: 上月数 | F5: 本月新增数 | G5: 本月减少数 | H5: 本月调整数 | I5: 本月数 | J5: 上月数 | K5: 本月新增数 | L5: 本月减少数 | M5: 本月调增数 | N5: 本月调减数
C6: 万人 | D6: 户 | E6: 户 | F6: 户 | G6: 户 | H6: 户 | I6: 人 | J6: 人 | K6: 人 | L6: 人 | M6: 人 | N6: 人 | O6: （‰） | P6: 元 | Q6: 元 | R6: 元 | S6: 元 | T6: 元 | U6: 元 | V6: 元 | W6: 元
A7: 1 | C7: 2 | D7: 3 | E7: 4 | F7: 5 | G7: 6 | H7: 7 | I7: 8 | J7: 9 | K7: 10 | L7: 11 | M7: 12 | N7: 13 | O7: 14 | P7: 15 | Q7: 16 | R7: 17 | S7: 18 | T7: 19 | U7: 20 | V7: 21 | W7: 22
A8: 1 | B8: 华侨路 | C8: 7.02 | D8: 117 | E8: 119 | F8: 0 | G8: 2 | H8: 12 | I8: 166 | J8: 169 | K8: 0 | L8: 3 | M8: 0 | N8: 0 | O8: =I:I/C:C/10 -> 2.37 | P8: =Q8+R8-S8+T8-U8 -> 150485 | Q8: 152359 | R8: 0 | S8: 1485 | T8: 669 | U8: 1058 | V8: =P8/I8 -> 906.54 | W8: 150485
A9: 2 | B9: 宁海路 | C9: 8.35 | D9: =E9+F9-G9 -> 119 | E9: 124 | F9: 0 | G9: 5 | H9: 11 | I9: =J9+K9-L9+M9-N9 -> 140 | J9: 146 | K9: 0 | L9: 5 | M9: 0 | N9: 1 | O9: =I:I/C:C/10 -> 1.68 | P9: =Q9+R9-S9+T9-U9 -> 150377 | Q9: 155775 | R9: 0 | S9: 4695 | T9: 1293 | U9: 1996 | V9: =P9/I9 -> 1074.12 | W9: 150377
A10: 3 | B10: 湖南路 | C10: 6.30 | D10: =E10+F10-G10 -> 121 | E10: 121 | F10: 2 | G10: 2 | H10: 10 | I10: =J10+K10-L10+M10-N10 -> 152 | J10: 151 | K10: 2 | L10: 3 | M10: 2 | N10: 0 | O10: 2.41 | P10: =Q10+R10-S10+T10-U10 -> 152990 | Q10: 151726 | R10: 2565 | S10: 2805 | T10: 1589 | U10: 85 | V10: 1006.51 | W10: 152990
A11: 4 | B11: 中央门 | C11: 9.94 | D11: 293 | E11: 296 | F11: 1 | G11: 4 | H11: 17 | I11: 406 | J11: 410 | K11: 1 | L11: 5 | M11: 1 | N11: 1 | O11: 4.08 | P11: 378281 | Q11: 382916 | R11: 1450 | S11: 4361 | T11: 962 | U11: 2686 | V11: 931.73 | W11: 378281
A12: 5 | B12: 挹江门 | C12: 7.1316 | D12: =E12+F12-G12 -> 186 | E12: 187 | F12: 0 | G12: 1 | H12: 27 | I12: =J12+K12-L12+M12-N12 -> 241 | J12: 246 | K12: 0 | L12: 1 | M12: 1 | N12: 5 | O12: 3.38 | P12: =Q12+R12-S12+T12-U12 -> 240978 | Q12: 244857 | R12: 0 | S12: 1080 | T12: 2588 | U12: 5387 | V12: 999.91 | W12: =P12 -> 240978
A13: 6 | B13: 江东 | C13: 11.21 | D13: 69 | E13: 70 | F13: 0 | G13: 1 | H13: 8 | I13: 99 | J13: 99 | K13: 0 | L13: 1 | M13: 1 | N13: 0 | O13: 0.88 | P13: 88548 | Q13: 88183 | R13: 0 | S13: 446 | T13: 823 | U13: 12 | V13: 894.42 | W13: 88548
A14: 7 | B14: 凤凰 | C14: 10.4 | D14: 195 | E14: 196 | F14: 2 | G14: 3 | H14: 37 | I14: 261 | J14: 263 | K14: 2 | L14: 3 | M14: 2 | N14: 3 | O14: 2.51 | P14: 251923 | Q14: 250711 | R14: 2342 | S14: 2041 | T14: 4739 | U14: 3828 | V14: 965.22 | W14: 251923
A15: 8 | B15: 热南 | C15: 6.72 | D15: 174 | E15: 178 | F15: 0 | G15: 4 | H15: 16 | I15: 229 | J15: 235 | K15: 0 | L15: 5 | M15: 0 | N15: 1 | O15: 3.41 | P15: 203229 | Q15: 207711 | R15: 0 | S15: 4821 | T15: 1293 | U15: 954 | V15: 887.46 | W15: 203229
A16: 9 | B16: 下关 | C16: 4.02 | D16: =E16+F16-G16 -> 299 | E16: 305 | F16: 1 | G16: 7 | H16: 65 | I16: =J16+K16-L16+M16-N16 -> 388 | J16: 395 | K16: 2 | L16: 8 | M16: 1 | N16: 2 | O16: 9.65 | P16: =Q16+R16-S16+T16-U16 -> 349860 | Q16: 357437 | R16: 867 | S16: 6367 | T16: 5259 | U16: 7336 | V16: 901.70 | W16: 349860
A17: 10 | B17: 建宁路 | C17: 3.87 | D17: 169 | E17: 169 | F17: 2 | G17: 2 | H17: 44 | I17: 220 | J17: 219 | K17: 2 | L17: 2 | M17: 1 | N17: 0 | O17: 5.68 | P17: 216073 | Q17: 212336 | R17: 2230 | S17: 2182 | T17: 5235 | U17: 1546 | V17: 982.15 | W17: 216073
A18: 11 | B18: 小市 | C18: 6.15 | D18: 243 | E18: 247 | F18: 2 | G18: 6 | H18: 46 | I18: 325 | J18: 332 | K18: 2 | L18: 7 | M18: 1 | N18: 3 | O18: 5.28 | P18: 299335 | Q18: 305835 | R18: 1764 | S18: 5437 | T18: 2557 | U18: 5384 | V18: 921.03 | W18: 299335
A19: 12 | B19: 宝塔桥 | C19: 8.91 | D19: 492 | E19: 497 | F19: 0 | G19: 5 | H19: 47 | I19: 707 | J19: 715 | K19: 0 | L19: 6 | M19: 0 | N19: 2 | O19: 7.93 | P19: 644417 | Q19: 651924 | R19: 0 | S19: 4086 | T19: 3516 | U19: 6937 | V19: 911.48 | W19: 644417
A20: 13 | B20: 幕府山 | C20: 5.85 | D20: =E20+F20-G20 -> 199 | E20: 204 | F20: 3 | G20: 8 | H20: 36 | I20: =J20+K20-L20+M20-N20 -> 270 | J20: 278 | K20: 5 | L20: 11 | M20: 0 | N20: 2 | O20: 4.62 | P20: =Q20+R20-S20+T20-U20 -> 268834 | Q20: 282982 | R20: 2899 | S20: 11322 | T20: 1756 | U20: 7481 | V20: 995.68 | W20: =268834 -> 268834
A21: 合计 | C21: =SUM(C8:C20) -> 95.8684 | D21: =SUM(D8:D20) -> 2676 | E21: =SUM(E8:E20) -> 2713 | F21: =SUM(F8:F20) -> 13 | G21: =SUM(G8:G20) -> 50 | H21: =SUM(H8:H20) -> 376 | I21: =SUM(I8:I20) -> 3604 | J21: =SUM(J8:J20) -> 3658 | K21: =SUM(K8:K20) -> 16 | L21: =SUM(L8:L20) -> 60 | M21: =SUM(M8:M20) -> 10 | N21: =SUM(N8:N20) -> 20 | O21: =SUM(O8:O20) -> 53.89 | P21: =SUM(P8:P20) -> 3395330 | Q21: =SUM(Q8:Q20) -> 3444752 | R21: =SUM(R8:R20) -> 14117 | S21: =SUM(S8:S20) -> 51128 | T21: =SUM(T8:T20) -> 32279 | U21: =SUM(U8:U20) -> 44690 | V21: =P21/I21 -> 942.10 | W21: =SUM(W8:W20) -> 3395330
A22: 填表人： 填表时间： 2026.1 签批人：
W37: 17772608
